bitfinex-derivatives/quotes_SOLF0:USTF0_20260304
["timestamp","ask_amount","ask_price","bid_price","bid_amount"]
[1772633867858,8.00198729,90.09,90.028,3.5882071]
[1772633868156,2.00949227,90.109,90.03,3.5882071]
[1772633868954,8.00198729,90.09,90.03,3.5882071]
[1772633869156,8.00198729,90.09,90.033,9.996]
[1772633869758,2.00949227,90.109,90.033,3.79206543]
[1772633870354,8.00198729,90.09,90.033,3.79206543]
[1772633871463,2.00949227,90.109,90.033,3.79206543]
[1772633871654,8.00198729,90.11,90.033,3.79206543]
[1772633871852,8.00198729,90.11,90.057,9.993]
[1772633872053,2.17335028,90.129,90.058,3.79206543]
[1772633872458,8.00198729,90.13,90.079,9.99]
[1772633872660,2.20460252,90.129,90.058,3.79206543]
[1772633872856,8.00198729,90.11,90.058,3.79206543]
[1772633873361,8.00198729,90.11,90.011,3.79206543]
[1772633873562,2.20460252,90.109,90.042,9.995]
[1772633873764,2.20460252,90.109,90.043,3.79206543]
[1772633874065,8.00198729,90.12,90.043,3.79206543]
[1772633874463,2.34793777,90.119,90.043,3.79206543]
[1772633875462,2.34793777,90.119,90.045,9.994]
[1772633876065,9.986,90.118,90.045,9.994]
[1772633876365,12.59057571,90.118,90.048,9.994]
[1772633877064,2.60457571,90.118,90.058,9.993]
[1772633877463,2.60457571,90.118,90.046,3.79206543]
[1772633877761,2.60457571,90.118,90.067,9.992]
[1772633878460,2.60457571,90.118,90.01,163.53498729]
[1772633878461,2.63703131,90.139,90.068,3.79206543]
[1772633879662,8.00198729,90.14,90.068,3.79206543]
[1772633879967,2.63703131,90.139,90.068,3.79206543]
[1772633880366,2.63703131,90.139,90.048,3.79206543]
[1772633880367,8.00198729,90.12,90.048,3.79206543]
[1772633880570,8.06717005,90.12,90.048,3.79206543]
[1772633881066,2.63703131,90.139,90.048,3.79206543]
[1772633881661,2.63703131,90.139,90.076,3.79206543]
[1772633882063,8.06717005,90.14,90.076,3.79206543]
[1772633882371,8.06717005,90.16,90.076,3.79206543]
[1772633882869,8.06717005,90.16,90.108,3.79206543]
[1772633883971,2.63014665,90.198,90.11,3.79206543]
[1772633884470,8.06717005,90.14,90.091,3.79206543]
[1772633885072,2.57029898,90.159,90.091,3.79206543]
[1772633885462,2.57029898,90.159,90.103,3.79206543]
[1772633886365,9.982,90.158,90.103,3.79206543]
[1772633886568,8.06717005,90.16,90.041,19.99]
[1772633886569,8.06717005,90.14,90.061,3.79206543]
[1772633886864,8.06717005,90.16,90.101,3.79206543]
[1772633887365,2.59679,90.176,90.113,9.987]
[1772633887568,2.59679,90.159,90.082,3.79206543]
[1772633887970,2.59679,90.155,90.082,3.79206543]
[1772633888478,8.06717005,90.14,90.093,9.989]
[1772633888976,8.06717005,90.14,90.082,3.79206543]
[1772633889275,8.06717005,90.14,90.092,9.989]
[1772633889876,8.06717005,90.14,90.082,3.79206543]
[1772633890569,2.70817931,90.137,90.06,3.79206543]
[1772633890770,8.06717005,90.12,90.06,3.79206543]
[1772633890971,2.70817931,90.119,90.06,3.79206543]
[1772633891370,2.70817931,90.119,90.021,3.79206543]
[1772633891572,2.70817931,90.099,90.021,3.79206543]
[1772633892974,19.964,90.159,89.997,272.03822094]
[1772633892975,2.45826113,90.079,89.997,272.03822094]
[1772633893170,8.06717005,90.06,89.998,3.79206543]
[1772633893377,2.45826113,90.059,89.998,3.79206543]
[1772633893570,8.06717005,90.04,89.951,3.79206543]
[1772633893773,2.45826113,90.06,89.951,3.79206543]
[1772633893969,10.52543118,90.06,89.991,3.79206543]
[1772633894168,2.45826113,90.059,89.991,3.79206543]
[1772633894575,124.0,90.08,89.97,8.06717005]
[1772633894576,2.46942504,90.039,89.97,3.79206543]
[1772633895579,8.06717005,90.04,89.97,3.79206543]
[1772633895779,2.46942504,90.059,89.97,3.79206543]
[1772633896678,2.44095653,90.079,89.988,3.79206543]
[1772633897379,8.06717005,90.06,89.996,10.0]
[1772633897574,10.50812658,90.04,89.966,3.79206543]
[1772633898074,2.44095653,90.059,89.989,3.79206543]
[1772633898274,2.44095653,90.059,89.969,3.41934641]
[1772633898480,2.07457561,90.039,89.974,10.002]
[1772633898681,8.06717005,90.02,89.969,3.41934641]
[1772633898981,2.07457561,90.035,89.969,3.41934641]
[1772633899576,2.07457561,90.035,89.981,10.001]
[1772633899972,8.06717005,90.04,89.969,3.41934641]
[1772633899973,8.06717005,90.04,89.991,10.0]
[1772633900184,8.06717005,90.04,89.969,3.41934641]
[1772633901082,8.06717005,90.09,89.95,8.06717005]
[1772633901083,8.06717005,90.07,90.0,3.41934641]
[1772633901485,2.23002866,90.088,90.0,3.41934641]
[1772633901486,8.06717005,90.08,90.0,3.41934641]
[1772633901883,8.06717005,90.08,90.023,9.997]
[1772633902187,10.21459998,90.142,89.96,155.619]
[1772633902188,2.20597382,90.099,90.024,3.41934641]
[1772633902383,8.06717005,90.08,90.024,3.41934641]
[1772633902585,2.20597382,90.059,89.975,3.41934641]
[1772633902988,2.20597382,90.059,89.999,9.999]
[1772633903181,2.20597382,90.059,89.975,3.41934641]
[1772633903387,2.20597382,90.059,90.008,9.998]
[1772633903580,2.20597382,90.059,89.975,3.41934641]
[1772633904384,12.19897382,90.059,89.998,9.999]
[1772633904584,2.93364504,90.058,89.975,3.41934641]
[1772633905189,2.93364504,90.058,89.993,3.69889001]
[1772633905388,2.93364504,90.078,89.993,3.69889001]
[1772633905588,2.93364504,90.078,89.97,8.06717005]
[1772633905589,2.93364504,90.078,90.03,9.996]
[1772633905790,11.00081509,90.1,90.011,3.69889001]
[1772633906385,2.93364504,90.1,90.011,3.69889001]
[1772633906588,2.93476861,90.129,90.031,3.69889001]
[1772633906993,2.93476861,90.129,90.077,9.991]
[1772633908195,2.93476861,90.129,90.085,9.99]
[1772633908387,2.93476861,90.129,90.055,3.69889001]
[1772633908698,2.93116255,90.126,90.055,3.69889001]
[1772633909293,2.93116255,90.109,90.019,3.69889001]
[1772633909489,8.06717005,90.11,90.021,19.994]
[1772633909693,8.06717005,90.11,90.022,3.69889001]
[1772633909888,2.93116255,90.147,90.053,3.69889001]
[1772633910089,2.93116255,90.147,90.06,8.06717005]
[1772633910296,2.93116255,90.147,90.061,3.69889001]
[1772633911387,2.93116255,90.147,90.094,9.989]
[1772633912198,2.93116255,90.147,90.104,9.988]
[1772633914599,2.94779904,90.169,90.113,9.987]
[1772633914797,2.94779904,90.169,90.081,3.69889001]
[1772633915199,2.94779904,90.166,90.103,9.988]
[1772633915397,2.94779904,90.166,90.081,3.69889001]
[1772633916501,2.94779904,90.166,90.02,163.58217005]
[1772633916502,8.06717005,90.15,90.079,3.69889001]
[1772633916902,9.983,90.149,90.087,3.69889001]
[1772633917800,8.06717005,90.15,90.098,9.988]
[1772633918001,2.92340231,90.158,90.099,3.69889001]
[1772633918401,9.981,90.168,90.114,3.69889001]
[1772633918611,19.953,90.209,90.114,3.69889001]
[1772633918612,8.06717005,90.19,90.114,3.69889001]
[1772633918807,2.88023296,90.189,90.114,3.69889001]
[1772633919307,2.88023296,90.189,90.128,9.985]
[1772633919308,9.98,90.178,90.128,9.985]
[1772633920103,9.978,90.187,90.137,9.984]
[1772633920312,2.99381249,90.208,90.137,3.69889001]
[1772633920609,9.975,90.214,90.16,9.981]
[1772633920806,2.99381249,90.226,90.161,3.69889001]
[1772633921206,9.974,90.224,90.162,3.69889001]
[1772633922310,9.975,90.218,90.162,3.69889001]
[1772633922611,8.06717005,90.22,90.162,3.69889001]
[1772633922805,8.06717005,90.24,90.164,3.69889001]
[1772633923005,8.06717005,90.26,90.164,3.69889001]
[1772633923407,8.06717005,90.26,90.202,3.69889001]
[1772633923605,8.06717005,90.28,90.202,3.69889001]
[1772633923913,8.06717005,90.28,90.215,13.67389001]
[1772633924108,8.06717005,90.28,90.216,3.69889001]
[1772633924611,8.06717005,90.28,90.218,3.69889001]
[1772633925208,11.11962442,90.28,90.218,3.69889001]
[1772633925508,3.05245437,90.279,90.218,3.69889001]
[1772633925908,3.05245437,90.277,90.198,3.69889001]
[1772633926112,8.06717005,90.26,90.198,3.69889001]
[1772633926814,3.05245437,90.277,90.198,3.69889001]
[1772633927417,3.06412224,90.259,90.199,9.977]
[1772633927714,3.06412224,90.259,90.161,3.69889001]
[1772633927916,3.06412224,90.259,90.2,9.977]
[1772633928109,8.06717005,90.26,90.201,3.69889001]
[1772633928514,8.06717005,90.26,90.204,9.977]
[1772633928718,8.06717005,90.26,90.205,3.41678656]
[1772633928905,3.06412224,90.279,90.205,3.41678656]
[1772633929112,10.77841504,90.3,90.205,3.41678656]
[1772633929310,2.71124499,90.299,90.205,3.41678656]
[1772633929510,2.71124499,90.299,90.17,155.256]
[1772633929511,2.71124499,90.299,90.211,3.41678656]
[1772633929708,2.71124499,90.299,90.238,3.41678656]
[1772633929907,8.06717005,90.31,90.238,3.41678656]
[1772633930218,2.80807251,90.289,90.191,3.41678656]
[1772633930609,8.06717005,90.27,90.191,3.41678656]
[1772633930813,10.87524256,90.27,90.191,3.41678656]
[1772633931013,8.06717005,90.3,90.191,3.41678656]
[1772633931014,8.06717005,90.25,90.191,3.41678656]
[1772633931718,8.06717005,90.25,90.193,13.39478656]
[1772633932117,8.06717005,90.25,90.197,9.977]
[1772633932619,8.06717005,90.25,90.198,3.41678656]
[1772633933014,8.06717005,90.25,90.199,9.977]
[1772633933217,8.06717005,90.25,90.198,3.41678656]
[1772633934714,8.06717005,90.23,90.179,3.41678656]
[1772633935621,2.86340527,90.249,90.179,3.41678656]
[1772633936614,2.86340527,90.249,90.18,9.979]
[1772633937119,2.86340527,90.249,90.179,3.41678656]
[1772633937320,8.06717005,90.25,90.179,13.39578656]
[1772633937321,2.75477352,90.246,90.179,13.39578656]
[1772633938120,2.75477352,90.246,90.188,9.978]
[1772633938924,2.78890096,90.229,90.137,3.41678656]
[1772633939119,8.06717005,90.21,90.137,3.41678656]
[1772633940229,8.06717005,90.23,90.167,3.41678656]
[1772633940429,2.76244515,90.249,90.167,3.41678656]
[1772633940624,2.76244515,90.249,90.184,3.41678656]
[1772633941225,2.76244515,90.249,90.203,9.977]
[1772633941829,9.97,90.266,90.203,9.977]
[1772633942032,2.76244515,90.257,90.161,3.41678656]
[1772633942430,2.76244515,90.257,90.189,13.39478656]
[1772633942632,9.971,90.255,90.189,3.41678656]
[1772633943029,2.76244515,90.257,90.206,9.976]
[1772633943224,2.76244515,90.257,90.189,3.41678656]
[1772633943427,8.04390084,90.27,90.189,3.41678656]
[1772633943935,8.04390084,90.29,90.216,3.41678656]
[1772633944531,8.04390084,90.29,90.236,3.41678656]
[1772633944836,2.7926059,90.269,90.201,3.41678656]
[1772633945037,9.97,90.26,90.201,3.41678656]
[1772633945234,2.7926059,90.269,90.201,3.41678656]
[1772633945830,8.04390084,90.25,90.183,3.41678656]
[1772633946030,2.7926059,90.249,90.183,3.41678656]
[1772633947028,2.83140817,90.229,90.131,3.41678656]
[1772633947840,8.04390084,90.21,90.157,9.982]
[1772633948434,9.976,90.209,90.154,3.41678656]
[1772633948638,2.83912294,90.208,90.154,3.41678656]
[1772633948838,8.04390084,90.19,90.134,3.41678656]
[1772633949441,2.83912294,90.208,90.134,3.41678656]
[1772633950239,2.84764279,90.189,90.134,3.41678656]
[1772633950746,2.84764279,90.187,90.121,9.986]
[1772633950943,8.04390084,90.17,90.121,9.986]
[1772633952647,8.04390084,90.19,90.115,3.41678656]
[1772633952842,8.04390084,90.23,90.115,3.41678656]
[1772633952843,8.04390084,90.17,90.115,3.41678656]
[1772633953147,2.86309089,90.149,90.096,267.31832857]
[1772633953338,2.86309089,90.149,90.092,3.41678656]
[1772633953539,8.04390084,90.15,90.092,3.41678656]
[1772633953744,2.86309089,90.169,90.114,9.987]
[1772633954245,2.86309089,90.169,90.092,3.41678656]
[1772633954745,2.86309089,90.169,90.111,9.987]
[1772633954946,2.86309089,90.169,90.092,3.41678656]
[1772633956240,2.86036149,90.187,90.116,3.41678656]
[1772633956443,8.04390084,90.17,90.116,3.41678656]
[1772633956748,8.04390084,90.17,90.117,9.986]
[1772633957543,8.04390084,90.17,90.126,9.985]
[1772633958048,2.86036149,90.187,90.132,9.984]
[1772633958741,2.86036149,90.187,90.141,9.984]
[1772633958941,8.04390084,90.19,90.127,3.41678656]
[1772633959145,9.976,90.21,90.127,3.41678656]
[1772633959146,8.04390084,90.21,90.127,3.41678656]
[1772633959547,8.04390084,90.21,90.159,9.982]
[1772633959849,3.57745192,90.213,90.149,4.06774105]
[1772633960041,11.52295514,90.23,90.149,4.06774105]
[1772633960249,11.52295514,90.23,90.177,9.98]
[1772633961046,11.52295514,90.23,90.187,9.978]
[1772633961446,8.04390084,90.3,90.166,4.06774105]
[1772633961447,3.47456298,90.249,90.166,4.06774105]
[1772633962049,3.47456298,90.249,90.196,9.977]
[1772633962444,3.47456298,90.249,90.183,4.06774105]
[1772633962951,3.47456298,90.249,90.195,9.977]
[1772633963454,13.12689424,90.245,90.184,9.979]
[1772633963655,3.15489424,90.244,90.184,9.979]
[1772633963856,3.15489424,90.244,90.183,4.06774105]
[1772633964155,9.97,90.263,90.203,9.977]
[1772633964346,3.23320638,90.264,90.183,4.06774105]
[1772633964748,3.23320638,90.264,90.221,9.975]
[1772633964946,3.23320638,90.264,90.176,3.84943555]
[1772633965149,3.23320638,90.264,90.202,9.977]
[1772633965751,3.23320638,90.264,90.197,3.84943555]
[1772633966355,8.04390084,90.27,90.197,3.84943555]
[1772633967253,8.04390084,90.27,90.219,9.975]
[1772633967451,3.25550321,90.283,90.219,9.975]
[1772633967655,8.04390084,90.29,90.22,3.84943555]
[1772633967859,3.25550321,90.299,90.22,3.84943555]
[1772633968453,13.22150321,90.299,90.234,9.973]
[1772633968657,3.2610289,90.298,90.234,9.973]
[1772633969549,3.2610289,90.298,90.243,9.972]
[1772633970745,3.2610289,90.298,90.22,3.84943555]
[1772633971452,3.23701466,90.279,90.22,3.84943555]
[1772633971857,3.23701466,90.279,90.23,9.974]
[1772633972059,8.04390084,90.26,90.198,3.84943555]
[1772633972254,3.23448727,90.259,90.198,3.84943555]
[1772633972454,3.23448727,90.259,90.2,9.977]
[1772633972752,3.23448727,90.259,90.15,21.44779171]
[1772633972753,3.23448727,90.219,90.137,3.84943555]
[1772633972949,3.23448727,90.213,90.159,9.981]
[1772633973151,8.04390084,90.2,90.137,3.84943555]
[1772633973654,3.23448727,90.199,90.149,9.983]
[1772633973952,3.23448727,90.219,90.137,3.84943555]
[1772633974159,8.04390084,90.22,90.169,9.98]
[1772633975359,8.04390084,90.22,90.111,292.34962106]
[1772633975360,3.24429671,90.219,90.13,3.84943555]
[1772633976060,9.976,90.212,90.145,9.983]
[1772633976259,3.24429671,90.219,90.146,3.84943555]
[1772633976852,9.975,90.216,90.15,9.982]
[1772633977662,3.24429671,90.219,90.146,3.84943555]
[1772633978362,8.04390084,90.23,90.147,3.84943555]
[1772633979257,8.04390084,90.23,90.165,3.84943555]
[1772633979658,3.25435066,90.229,90.165,3.84943555]
[1772633979966,3.25435066,90.209,90.144,3.84943555]
[1772633980461,9.976,90.208,90.153,9.982]
[1772633980764,3.25435066,90.209,90.144,3.84943555]
[1772633981756,9.977,90.2,90.144,3.84943555]
[1772633982362,13.21421777,90.2,90.144,3.84943555]
[1772633982559,13.21521777,90.192,90.134,9.984]
[1772633982859,13.21521777,90.192,90.09,8.04390084]
[1772633982860,3.23721777,90.169,90.105,3.84943555]
[1772633983963,8.04390084,90.17,90.105,13.83643555]
[1772633983964,3.23721777,90.165,90.105,13.83643555]
[1772633984662,3.21016324,90.162,90.095,9.989]
[1772633984963,8.04390084,90.17,90.096,3.84943555]
[1772633985261,3.21016324,90.169,90.096,3.84943555]
[1772633985767,3.21016324,90.159,90.096,3.84943555]
[1772633985966,8.04390084,90.15,90.096,3.84943555]
[1772633986363,8.04390084,90.15,90.087,9.989]
[1772633986364,3.21026541,90.149,90.087,9.989]
[1772633987065,3.21026541,90.145,90.077,9.991]
[1772633987268,3.21026541,90.145,90.076,3.84943555]
[1772633987863,9.985,90.132,90.076,13.84043555]
[1772633988058,3.21026541,90.145,90.076,13.84043555]
[1772633988261,3.20166889,90.149,90.076,3.84943555]
[1772633988864,9.983,90.147,90.076,3.84943555]
[1772633989567,8.04390084,90.15,90.09,3.62983337]
[1772633989967,3.20202641,90.166,90.09,3.62983337]
[1772633990163,3.18206988,90.169,90.111,3.70815649]
[1772633990367,3.18206988,90.149,90.068,3.70815649]
[1772633991071,3.18206988,90.149,90.077,3.70815649]
[1772633992567,3.18206988,90.149,90.08,3.70815649]
[1772633993473,8.04390084,90.14,90.08,3.70815649]
[1772633994371,18.02790084,90.14,90.082,9.99]
[1772633994772,3.61237965,90.139,90.082,9.99]
[1772633995073,8.04390084,90.12,90.062,3.70815649]
[1772633996177,8.04390084,90.12,90.074,3.76276469]
[1772633996873,11.60184134,90.12,90.07,9.991]
[1772633997374,8.04390084,90.12,90.055,3.76276469]
[1772633997671,3.5579405,90.139,90.055,3.76276469]
[1772633998173,13.5419405,90.135,90.079,9.99]
[1772633999076,3.5579405,90.135,90.072,3.76276469]
[1772633999276,3.56345915,90.154,90.072,3.76276469]
[1772633999469,3.56345915,90.154,90.103,9.988]
[1772634000572,3.55053112,90.172,90.091,3.76276469]
[1772634001268,3.54949053,90.169,90.091,3.76276469]
[1772634002175,9.983,90.147,90.105,9.988]
[1772634002377,3.54536057,90.146,90.074,3.82380629]
[1772634003273,3.54536057,90.143,90.094,9.989]
[1772634004076,8.05994836,90.15,90.103,9.988]
[1772634004276,8.05994836,90.15,90.091,3.82380629]
[1772634004579,3.54063101,90.16,90.103,3.82380629]
[1772634004778,11.60057937,90.16,90.103,3.82380629]
[1772634005280,3.53983681,90.159,90.084,3.95975591]
[1772634005476,3.53990172,90.139,90.051,3.95975591]
[1772634006474,9.985,90.13,90.068,3.95975591]
[1772634006676,3.76708318,90.099,90.031,3.95975591]
[1772634007070,8.05994836,90.1,90.031,3.95975591]
[1772634007472,9.988,90.098,90.046,9.994]
[1772634007677,3.76708318,90.097,90.031,3.95975591]
[1772634008077,3.76708318,90.097,89.991,3.95975591]
[1772634008078,8.05994836,90.08,89.991,3.95975591]
[1772634008272,3.73669583,90.079,89.991,3.95975591]
[1772634009279,3.73669583,90.067,89.991,3.95975591]
[1772634009580,3.73669583,90.059,90.001,9.999]
[1772634009779,3.73669583,90.059,89.991,3.95975591]
[1772634010478,9.995,90.04,89.991,3.95975591]
[1772634010679,3.76932407,90.039,89.971,10.002]
[1772634010883,3.76932407,90.039,89.969,3.95975591]
[1772634011588,3.76932407,90.058,89.969,3.95975591]
[1772634012075,9.994,90.046,89.977,3.95975591]
[1772634012480,3.77118878,90.039,89.977,3.95975591]
[1772634012681,3.77118878,90.039,89.911,155.703]
[1772634012682,3.77118878,90.039,89.958,3.95975591]
[1772634013175,3.77118878,90.039,89.977,10.002]
[1772634013380,3.77118878,90.059,89.978,3.95975591]
[1772634015486,3.78769186,90.058,89.987,10.001]
[1772634015691,3.78769186,90.058,89.988,3.95975591]
[1772634016386,3.78736998,90.053,89.989,10.0]
[1772634016593,3.78736998,90.053,89.988,3.95975591]
[1772634017388,3.78736998,90.051,89.988,3.95975591]
[1772634018191,3.78736998,90.051,89.999,9.999]
[1772634018389,3.78736998,90.051,89.988,3.95975591]
[1772634018686,3.78736998,90.051,89.997,10.0]
[1772634018893,3.78736998,90.051,89.998,3.62319867]
[1772634019093,3.849704,90.069,89.998,3.62319867]
[1772634019294,3.849704,90.069,90.014,9.998]
[1772634019994,3.84964467,90.067,90.014,9.998]
[1772634020198,3.87282942,90.059,89.998,3.62319867]
[1772634020591,3.87282942,90.055,89.961,3.62319867]
[1772634020787,3.87282942,90.039,89.961,3.62319867]
[1772634022495,9.995,90.036,89.978,10.002]
[1772634022995,9.995,90.038,89.978,10.002]
[1772634023200,3.78339411,90.019,89.961,3.62319867]
[1772634023796,3.78339411,90.019,89.942,3.89855173]
[1772634024091,3.78339411,90.019,89.91,267.54542143]
[1772634024092,3.78339411,89.999,89.911,3.89855173]
[1772634025494,3.78339411,89.999,89.939,3.89855173]
[1772634026296,3.78339411,89.999,89.941,3.89855173]
[1772634027186,3.78339411,89.999,89.911,3.89855173]
[1772634027398,3.78339411,89.999,89.943,10.006]
[1772634027593,3.77449771,90.019,89.944,3.89855173]
[1772634028396,3.77449771,90.019,89.961,10.003]
[1772634028596,3.78302164,90.038,89.962,3.89855173]
[1772634028800,3.78302164,90.059,89.962,3.89855173]
[1772634028998,3.78302164,90.059,89.991,3.89855173]
[1772634029398,3.78302164,90.059,90.003,9.999]
[1772634029596,3.78302164,90.059,89.991,3.89855173]
[1772634029898,8.05994836,90.04,89.951,3.89855173]
[1772634030096,3.78302164,90.039,89.951,3.89855173]
[1772634030295,9.995,90.034,89.982,10.001]
[1772634030494,3.78302164,90.039,89.968,3.89855173]
[1772634030895,3.78302164,90.039,89.974,10.002]
[1772634031296,3.77657943,90.019,89.931,3.89855173]
[1772634031496,3.77657943,90.019,89.965,10.003]
[1772634032000,9.995,90.036,89.98,10.001]
[1772634032594,8.05994836,90.04,89.996,10.0]
[1772634032795,8.05994836,90.04,89.973,3.89855173]
[1772634032796,3.77802517,90.056,89.973,3.89855173]
[1772634033296,13.76902517,90.072,90.011,9.998]
[1772634033501,13.76902517,90.072,90.003,3.89855173]
[1772634034100,9.992,90.068,90.019,9.997]
[1772634034304,3.78810797,90.067,90.003,3.89855173]
[1772634034500,3.78810797,90.059,89.984,3.89855173]
[1772634034902,9.994,90.048,89.999,9.999]
[1772634035200,3.78810797,90.059,89.984,3.89855173]
[1772634035400,8.05994836,90.04,89.984,3.89855173]
[1772634035603,8.05994836,90.04,89.938,20.013]
[1772634035604,3.78810797,90.037,89.964,3.89855173]
[1772634035800,19.981,90.083,89.964,3.89855173]
[1772634035801,11.84805633,90.02,89.964,3.89855173]
[1772634036002,3.78810797,90.019,89.964,3.89855173]
[1772634036898,8.05994836,90.03,89.964,3.89855173]
[1772634037306,9.995,90.039,89.99,10.0]
[1772634037506,8.05994836,90.05,89.964,3.89855173]
[1772634037994,8.05994836,90.05,90.005,9.999]
[1772634038203,3.82778644,90.058,89.991,3.89855173]
[1772634038606,21.89999774,90.05,89.996,10.0]
[1772634038901,3.84604938,90.049,89.991,3.89855173]
[1772634039299,3.84604938,90.049,89.993,10.0]
[1772634039603,3.84604938,90.049,89.991,3.89855173]
[1772634039801,9.995,90.04,89.993,10.0]
[1772634039999,3.84604938,90.049,89.991,3.89855173]
[1772634040298,3.84604938,90.068,89.951,3.89855173]
[1772634040497,9.993,90.055,89.987,3.89855173]
[1772634041203,3.84604938,90.068,90.017,9.997]
[1772634041405,3.84604938,90.068,90.008,3.89855173]
[1772634041904,9.993,90.056,90.011,9.998]
[1772634042104,9.993,90.056,90.008,3.89855173]
[1772634042799,3.84604938,90.059,89.989,3.89855173]
[1772634043503,9.994,90.046,89.991,3.89855173]
[1772634044504,9.994,90.046,89.999,9.999]
[1772634044704,3.84604938,90.059,89.991,3.89855173]
[1772634044906,8.05994836,90.04,89.951,3.89855173]
[1772634045410,3.84604938,90.039,89.951,3.89855173]
[1772634045602,3.84604938,90.059,89.974,3.89855173]
[1772634045814,3.84604938,90.077,89.974,3.89855173]
[1772634047316,13.83904938,90.058,90.004,9.999]
[1772634048413,8.05994836,90.06,90.019,9.997]
[1772634048721,3.9634916,90.079,89.993,3.89855173]
[1772634049119,12.02343996,90.06,90.001,9.999]
[1772634049422,3.9634916,90.059,89.993,3.89855173]
[1772634049918,8.05994836,90.06,89.993,3.89855173]
[1772634050820,8.05994836,90.06,90.003,9.999]
[1772634051023,3.9634916,90.059,90.003,9.999]
[1772634052114,3.9634916,90.059,89.993,3.89855173]
[1772634052115,13.9564916,90.059,90.01,9.998]
[1772634052924,3.9634916,90.078,90.01,3.96612102]
[1772634054425,9.991,90.076,90.024,9.997]
[1772634055026,9.991,90.076,90.03,9.996]
[1772634055326,9.992,90.069,90.01,3.96612102]
[1772634055521,3.9634916,90.078,90.01,3.96612102]
[1772634055827,8.05994836,90.06,89.989,3.96612102]
[1772634056026,9.994,90.047,90.001,9.999]
[1772634056625,9.993,90.054,90.008,9.998]
[1772634056922,3.9634916,90.059,89.989,3.96612102]
[1772634057122,9.993,90.054,89.989,3.96612102]
[1772634057620,3.9634916,90.059,89.989,3.96612102]
[1772634059427,9.994,90.047,89.999,9.999]
[1772634060024,9.994,90.047,89.931,26.80778174]
[1772634060025,3.9634916,90.039,89.974,10.23974395]
[1772634060224,3.9634916,90.039,89.971,3.96612102]
[1772634060427,8.05994836,90.06,90.014,9.998]
[1772634060622,3.9634916,90.069,90.008,3.96612102]
[1772634060925,8.05994836,90.08,90.033,9.995]
[1772634060926,9.991,90.078,90.033,9.995]
[1772634061825,9.991,90.078,89.978,20.34034465]
[1772634061826,3.9634916,90.059,89.993,10.23974395]
[1772634062029,3.9634916,90.059,89.994,3.96612102]
[1772634062229,8.05994836,90.04,89.994,3.96612102]
[1772634062527,8.08103625,90.04,89.995,10.0]
[1772634062833,8.08103625,90.08,89.995,3.96612102]
[1772634063033,8.08103625,90.08,90.004,3.96612102]
[1772634064527,9.991,90.077,90.02,9.997]
[1772634065127,8.08103625,90.08,90.023,3.96612102]
[1772634065832,9.991,90.078,90.029,9.996]
[1772634066925,8.08103625,90.08,90.036,9.995]
[1772634067122,3.9634916,90.095,90.036,9.995]
[1772634068932,3.9634916,90.095,90.044,9.994]
[1772634069324,3.9634916,90.095,90.037,3.96612102]
[1772634069725,3.9634916,90.095,90.01,3.96612102]
[1772634070234,3.9634916,90.095,90.011,3.96612102]
[1772634070435,9.99,90.081,90.034,9.995]
[1772634070632,9.99,90.081,90.011,3.96612102]
[1772634070633,12.04452785,90.08,90.011,3.96612102]
[1772634070930,9.994,90.048,90.001,9.999]
[1772634071934,9.994,90.048,89.998,3.96612102]
[1772634072335,9.995,90.041,89.998,3.96612102]
[1772634073031,8.08103625,90.02,89.973,10.23974395]
[1772634073234,8.08103625,90.02,89.962,3.96612102]
[1772634073430,8.08103625,90.02,89.969,10.23974395]
[1772634073631,8.08103625,90.02,89.964,14.20586497]
[1772634074035,9.997,90.018,89.965,3.96612102]
[1772634074437,8.08103625,90.02,89.965,3.96612102]
[1772634074836,9.998,90.009,89.965,3.96612102]
[1772634076130,9.999,90.002,89.951,10.23974395]
[1772634076336,9.999,90.002,89.95,10.005]
[1772634076538,9.999,90.002,89.95,20.24474395]
[1772634077033,9.999,90.002,89.949,10.23974395]
[1772634077239,9.999,90.002,89.946,3.96612102]
[1772634077739,9.998,90.011,89.948,3.96612102]
[1772634078136,3.9634916,90.019,89.948,3.96612102]
[1772634079535,10.0,89.996,89.948,3.96612102]
[1772634079741,3.605778,89.995,89.941,10.006]
[1772634080339,8.08103625,90.0,89.945,3.72369651]
[1772634080539,3.605778,90.018,89.945,3.72369651]
[1772634081240,3.605778,90.008,89.948,13.72869651]
[1772634081936,3.605778,90.008,89.935,10.23974395]